[Event "Titled Tuesday Blitz June 20 Early 2023"]
[White "Rosh Jain"]
[Black "Budrewicz, Krzysztof"]
[WhiteFideId "25789465"]
[BlackFideId "1127950"]
[WhiteElo "2233"]
[BlackElo "2230"]
[Result "0-1"]
[Round "8"]
[TimeControl "180+2"]
[Date "2023.06.20"]
[WhiteClock "0:00:00"]
[BlackClock "0:00:22"]
[Board "88"]

1. e4 {[%clk 0:02:57]}  d5 {[%clk 0:02:59]} 2. exd5 {[%clk 0:02:56]}  Nf6 {[%clk 0:02:59]} 3. d4 {[%clk 0:02:56]}  Nxd5 {[%clk 0:03:00]} 4. Nf3 {[%clk 0:02:55]}  g6 {[%clk 0:03:00]} 5. Bd3 {[%clk 0:02:55]}  Bg7 {[%clk 0:03:00]} 6. O-O {[%clk 0:02:55]}  O-O {[%clk 0:03:00]} 7. c4 {[%clk 0:02:54]}  Nb6 {[%clk 0:03:00]} 8. Be3 {[%clk 0:02:53]}  Nc6 {[%clk 0:03:00]} 9. Be2 {[%clk 0:02:32]}  Bg4 {[%clk 0:02:51]} 10. c5 {[%clk 0:02:30]}  Nd5 {[%clk 0:02:49]} 11. Nc3 {[%clk 0:02:26]}  Nxe3 {[%clk 0:02:43]} 12. fxe3 {[%clk 0:02:27]}  Bh6 {[%clk 0:02:42]} 13. Qd3 {[%clk 0:02:20]}  Bf5 {[%clk 0:02:28]} 14. e4 {[%clk 0:02:17]}  Bg4 {[%clk 0:02:28]} 15. Rad1 {[%clk 0:02:11]}  Bg7 {[%clk 0:02:28]} 16. e5 {[%clk 0:02:03]}  a6 {[%clk 0:02:21]} 17. Qe3 {[%clk 0:01:58]}  Nb4 {[%clk 0:02:13]} 18. a3 {[%clk 0:01:35]}  Nd5 {[%clk 0:02:13]} 19. Qe4 {[%clk 0:01:29]}  c6 {[%clk 0:02:06]} 20. Qxg4 {[%clk 0:01:23]}  Ne3 {[%clk 0:02:06]} 21. Qh4 {[%clk 0:01:22]}  Nxd1 {[%clk 0:02:03]} 22. Rxd1 {[%clk 0:01:22]}  f6 {[%clk 0:01:59]} 23. Bc4+ {[%clk 0:01:21]}  Kh8 {[%clk 0:01:59]} 24. e6 {[%clk 0:01:05]}  Qc7 {[%clk 0:01:49]} 25. Rd3 {[%clk 0:01:00]}  Rad8 {[%clk 0:01:45]} 26. Nd2 {[%clk 0:00:54]}  f5 {[%clk 0:01:25]} 27. Nf3 {[%clk 0:00:48]}  h6 {[%clk 0:01:21]} 28. Ng5 {[%clk 0:00:44]}  Rf6 {[%clk 0:01:07]} 29. Nf7+ {[%clk 0:00:44]}  Kh7 {[%clk 0:01:07]} 30. Nxd8 {[%clk 0:00:43]}  Qxd8 {[%clk 0:01:07]} 31. d5 {[%clk 0:00:44]}  Qa5 {[%clk 0:01:02]} 32. Qf2 {[%clk 0:00:38]}  Rf8 {[%clk 0:00:48]} 33. d6 {[%clk 0:00:35]}  Be5 {[%clk 0:00:28]} 34. dxe7 {[%clk 0:00:32]}  Re8 {[%clk 0:00:27]} 35. Rd8 {[%clk 0:00:30]}  Rxd8 {[%clk 0:00:25]} 36. exd8=Q {[%clk 0:00:31]}  Qxd8 {[%clk 0:00:26]} 37. Qe2 {[%clk 0:00:20]}  Bd4+ {[%clk 0:00:25]} 38. Kh1 {[%clk 0:00:19]}  Bxc5 {[%clk 0:00:25]} 39. Qe5 {[%clk 0:00:03]}  Be7 {[%clk 0:00:22]} 40. Ne2 {[%clk 0:00:00]}  b5 {[%clk 0:00:22]} 0-1


[Site "https://www.chess.com"]

[Event "Titled Tuesday Blitz June 20 Early 2023"]
[White "whiteglovethief"]
[Black "Haug, Havard"]
[BlackFideId "1547887"]
[WhiteElo "2520"]
[BlackElo "2396"]
[Result "0-1"]
[Round "8"]
[TimeControl "180+2"]
[Date "2023.06.20"]
[WhiteClock "0:00:00"]
[BlackClock "0:00:44"]
[Board "90"]

1. d4 {[%clk 0:03:00]}  d5 {[%clk 0:02:58]} 2. c4 {[%clk 0:03:01]}  e6 {[%clk 0:02:58]} 3. Nf3 {[%clk 0:03:01]}  c5 {[%clk 0:02:58]} 4. cxd5 {[%clk 0:03:00]}  exd5 {[%clk 0:02:59]} 5. g3 {[%clk 0:03:00]}  Nf6 {[%clk 0:03:00]} 6. Bg2 {[%clk 0:03:01]}  Nc6 {[%clk 0:03:00]} 7. O-O {[%clk 0:03:02]}  Be7 {[%clk 0:03:01]} 8. Nc3 {[%clk 0:03:02]}  O-O {[%clk 0:03:01]} 9. Bg5 {[%clk 0:03:01]}  c4 {[%clk 0:03:00]} 10. Ne5 {[%clk 0:02:56]}  Be6 {[%clk 0:02:57]} 11. Rc1 {[%clk 0:02:49]}  h6 {[%clk 0:02:54]} 12. Bxf6 {[%clk 0:02:47]}  Bxf6 {[%clk 0:02:55]} 13. f4 {[%clk 0:02:44]}  Qb6 {[%clk 0:02:28]} 14. e3 {[%clk 0:02:33]}  Rad8 {[%clk 0:02:22]} 15. Na4 {[%clk 0:02:20]}  Qc7 {[%clk 0:02:16]} 16. b3 {[%clk 0:02:12]}  Bxe5 {[%clk 0:02:10]} 17. fxe5 {[%clk 0:02:08]}  cxb3 {[%clk 0:02:08]} 18. Qxb3 {[%clk 0:01:56]}  Qe7 {[%clk 0:01:58]} 19. Nc5 {[%clk 0:01:53]}  Na5 {[%clk 0:01:57]} 20. Qa4 {[%clk 0:01:43]}  b6 {[%clk 0:01:55]} 21. Nb3 {[%clk 0:01:16]}  Nc4 {[%clk 0:01:53]} 22. Rfe1 {[%clk 0:01:16]}  Rc8 {[%clk 0:01:37]} 23. e4 {[%clk 0:01:14]}  dxe4 {[%clk 0:01:36]} 24. Bxe4 {[%clk 0:01:12]}  Qg5 {[%clk 0:00:50]} 25. Qa6 {[%clk 0:01:04]}  Nd2 {[%clk 0:00:45]} 26. Nxd2 {[%clk 0:00:59]}  Rxc1 {[%clk 0:00:44]} 27. Rxc1 {[%clk 0:00:00]}  Qxd2 {[%clk 0:00:44]} 0-1


[Site "https://www.chess.com"]

[Event "Titled Tuesday Blitz June 20 Early 2023"]
[White "Domingo Nunez, Ruben"]
[Black "Shapiro, Viktor"]
[WhiteFideId "22245570"]
[BlackFideId "4175700"]
[WhiteElo "2404"]
[BlackElo "2212"]
[Result "0-1"]
[Round "8"]
[TimeControl "180+2"]
[Date "2023.06.20"]
[WhiteClock "0:00:00"]
[BlackClock "0:00:18"]
[Board "93"]

1. b3 {[%clk 0:03:00]}  Nf6 {[%clk 0:02:55]} 2. Bb2 {[%clk 0:02:59]}  d5 {[%clk 0:02:55]} 3. Nf3 {[%clk 0:03:00]}  Bf5 {[%clk 0:02:55]} 4. g3 {[%clk 0:02:59]}  e6 {[%clk 0:02:54]} 5. Bg2 {[%clk 0:03:00]}  Nbd7 {[%clk 0:02:55]} 6. O-O {[%clk 0:03:01]}  Be7 {[%clk 0:02:53]} 7. d3 {[%clk 0:03:02]}  h6 {[%clk 0:02:53]} 8. Nbd2 {[%clk 0:03:03]}  O-O {[%clk 0:02:53]} 9. Ne5 {[%clk 0:03:04]}  Nxe5 {[%clk 0:02:48]} 10. Bxe5 {[%clk 0:03:05]}  a5 {[%clk 0:02:48]} 11. e4 {[%clk 0:03:05]}  Bh7 {[%clk 0:02:42]} 12. a4 {[%clk 0:03:04]}  c6 {[%clk 0:02:32]} 13. Qe2 {[%clk 0:03:04]}  b5 {[%clk 0:02:27]} 14. Kh1 {[%clk 0:03:03]}  Nd7 {[%clk 0:02:23]} 15. Bb2 {[%clk 0:03:02]}  Bf6 {[%clk 0:02:22]} 16. e5 {[%clk 0:03:01]}  Be7 {[%clk 0:02:21]} 17. axb5 {[%clk 0:02:31]}  cxb5 {[%clk 0:02:21]} 18. Nf3 {[%clk 0:02:32]}  a4 {[%clk 0:02:17]} 19. bxa4 {[%clk 0:02:29]}  bxa4 {[%clk 0:02:17]} 20. Ba3 {[%clk 0:02:29]}  Bxa3 {[%clk 0:02:11]} 21. Rxa3 {[%clk 0:02:30]}  Qe7 {[%clk 0:02:12]} 22. Rfa1 {[%clk 0:02:31]}  Nb6 {[%clk 0:01:58]} 23. Qe3 {[%clk 0:02:17]}  Qc7 {[%clk 0:01:48]} 24. Qd4 {[%clk 0:02:11]}  Rfb8 {[%clk 0:01:43]} 25. R1a2 {[%clk 0:02:10]}  Ra5 {[%clk 0:01:39]} 26. h4 {[%clk 0:02:08]}  Rc5 {[%clk 0:01:38]} 27. c3 {[%clk 0:01:29]}  Rb5 {[%clk 0:01:20]} 28. Kh2 {[%clk 0:01:22]}  Bg6 {[%clk 0:01:15]} 29. Ne1 {[%clk 0:01:15]}  Rb3 {[%clk 0:01:07]} 30. Rxb3 {[%clk 0:00:44]}  axb3 {[%clk 0:01:07]} 31. Rb2 {[%clk 0:00:43]}  Nd7 {[%clk 0:01:04]} 32. Nf3 {[%clk 0:00:43]}  Nc5 {[%clk 0:01:03]} 33. Bf1 {[%clk 0:00:43]}  Qa5 {[%clk 0:00:53]} 34. Nd2 {[%clk 0:00:20]}  Qa3 {[%clk 0:00:50]} 35. c4 {[%clk 0:00:21]}  Bxd3 {[%clk 0:00:34]} 36. cxd5 {[%clk 0:00:14]}  Bxf1 {[%clk 0:00:31]} 37. Nxf1 {[%clk 0:00:15]}  exd5 {[%clk 0:00:31]} 38. Nd2 {[%clk 0:00:12]}  Ne6 {[%clk 0:00:29]} 39. Qc3 {[%clk 0:00:08]}  d4 {[%clk 0:00:23]} 40. Qc1 {[%clk 0:00:08]}  Nc5 {[%clk 0:00:20]} 41. Qb1 {[%clk 0:00:04]}  Qb4 {[%clk 0:00:20]} 42. Qa1 {[%clk 0:00:01]}  Qc3 {[%clk 0:00:20]} 43. Qb1 {[%clk 0:00:01]}  d3 {[%clk 0:00:20]} 44. Kg2 {[%clk 0:00:01]}  Qxe5 {[%clk 0:00:18]} 45. Kg1 {[%clk 0:00:01]}  Qd5 {[%clk 0:00:18]} 46. Qc1 {[%clk 0:00:01]}  f6 {[%clk 0:00:18]} 47. Qc3 {[%clk 0:00:01]}  Re8 {[%clk 0:00:18]} 48. Rb1 {[%clk 0:00:01]}  Re2 {[%clk 0:00:18]} 49. Nxb3 {[%clk 0:00:01]}  Ne4 {[%clk 0:00:17]} 50. Qc8+ {[%clk 0:00:00]}  Kh7 {[%clk 0:00:18]} 0-1


[Site "https://www.chess.com"]

[Event "Titled Tuesday Blitz June 20 Early 2023"]
[White "Santos Flores, Alberto"]
[Black "Aldokhin, Ivan"]
[WhiteFideId "3601234"]
[BlackFideId "24115720"]
[WhiteElo "2235"]
[BlackElo "2322"]
[Result "0-1"]
[Round "8"]
[TimeControl "180+2"]
[Date "2023.06.20"]
[WhiteClock "0:00:47"]
[BlackClock "0:01:30"]
[Board "97"]

1. e4 {[%clk 0:03:00]}  c5 {[%clk 0:02:54]} 2. Nf3 {[%clk 0:03:00]}  e6 {[%clk 0:02:54]} 3. g3 {[%clk 0:03:00]}  b6 {[%clk 0:02:54]} 4. Bg2 {[%clk 0:03:00]}  Bb7 {[%clk 0:02:55]} 5. Qe2 {[%clk 0:03:00]}  d6 {[%clk 0:02:55]} 6. O-O {[%clk 0:02:58]}  a6 {[%clk 0:02:55]} 7. c3 {[%clk 0:02:57]}  Nf6 {[%clk 0:02:55]} 8. d3 {[%clk 0:02:50]}  Be7 {[%clk 0:02:54]} 9. a3 {[%clk 0:02:43]}  O-O {[%clk 0:02:52]} 10. b4 {[%clk 0:02:43]}  Nbd7 {[%clk 0:02:32]} 11. Nbd2 {[%clk 0:02:41]}  b5 {[%clk 0:02:33]} 12. d4 {[%clk 0:02:35]}  cxd4 {[%clk 0:02:30]} 13. cxd4 {[%clk 0:02:36]}  Rc8 {[%clk 0:02:26]} 14. Bb2 {[%clk 0:02:36]}  Rc2 {[%clk 0:02:22]} 15. Ra2 {[%clk 0:02:19]}  Bxe4 {[%clk 0:02:18]} 16. Rc1 {[%clk 0:02:10]}  Qc7 {[%clk 0:02:13]} 17. Raa1 {[%clk 0:01:59]}  Bd5 {[%clk 0:02:05]} 18. Qd3 {[%clk 0:01:56]}  Rc8 {[%clk 0:02:02]} 19. Ne1 {[%clk 0:01:51]}  Rxc1 {[%clk 0:01:58]} 20. Rxc1 {[%clk 0:01:51]}  Qb7 {[%clk 0:01:55]} 21. Rxc8+ {[%clk 0:01:49]}  Qxc8 {[%clk 0:01:55]} 22. Nef3 {[%clk 0:01:48]}  Nb6 {[%clk 0:01:53]} 23. h4 {[%clk 0:01:46]}  h6 {[%clk 0:01:52]} 24. Qe3 {[%clk 0:01:38]}  Na4 {[%clk 0:01:49]} 25. Ba1 {[%clk 0:01:31]}  Qc1+ {[%clk 0:01:49]} 26. Qe1 {[%clk 0:01:31]}  Qxa3 {[%clk 0:01:49]} 27. Qb1 {[%clk 0:01:28]}  Nc3 {[%clk 0:01:33]} 28. Bxc3 {[%clk 0:01:27]}  Qxc3 {[%clk 0:01:34]} 29. Kf1 {[%clk 0:01:06]}  Bd8 {[%clk 0:01:33]} 30. Ke2 {[%clk 0:01:05]}  Bb6 {[%clk 0:01:30]} 31. Qd3 {[%clk 0:00:47]}  Qxb4 {[%clk 0:01:30]} 0-1


[Site "https://www.chess.com"]

[Event "Titled Tuesday Blitz June 20 Early 2023"]
[White "Parpiev, Isaak"]
[Black "Moskvin, Anatoly"]
[WhiteFideId "34281576"]
[BlackFideId "24199990"]
[WhiteElo "2167"]
[BlackElo "2104"]
[Result "0-1"]
[Round "8"]
[TimeControl "180+2"]
[Date "2023.06.20"]
[WhiteClock "0:01:51"]
[BlackClock "0:01:52"]
[Board "98"]

1. Nf3 {[%clk 0:02:55]}  g6 {[%clk 0:02:59]} 2. e4 {[%clk 0:02:42]}  Bg7 {[%clk 0:03:00]} 3. d4 {[%clk 0:02:40]}  c6 {[%clk 0:03:01]} 4. g3 {[%clk 0:02:37]}  d5 {[%clk 0:02:55]} 5. e5 {[%clk 0:02:38]}  Bg4 {[%clk 0:02:52]} 6. Bg2 {[%clk 0:02:38]}  e6 {[%clk 0:02:48]} 7. O-O {[%clk 0:02:38]}  Ne7 {[%clk 0:02:47]} 8. c3 {[%clk 0:02:36]}  Nd7 {[%clk 0:02:45]} 9. h3 {[%clk 0:02:35]}  Bxf3 {[%clk 0:02:46]} 10. Bxf3 {[%clk 0:02:36]}  h6 {[%clk 0:02:40]} 11. h4 {[%clk 0:02:32]}  Qc7 {[%clk 0:02:36]} 12. h5 {[%clk 0:02:32]}  O-O-O {[%clk 0:02:30]} 13. b4 {[%clk 0:02:29]}  Rdg8 {[%clk 0:02:15]} 14. a4 {[%clk 0:02:17]}  f6 {[%clk 0:02:09]} 15. exf6 {[%clk 0:02:13]}  Bxf6 {[%clk 0:02:10]} 16. b5 {[%clk 0:01:56]}  gxh5 {[%clk 0:02:03]} 17. Bxh5 {[%clk 0:01:56]}  Rxg3+ {[%clk 0:01:50]} 18. fxg3 {[%clk 0:01:54]}  Qxg3+ {[%clk 0:01:51]} 19. Kh1 {[%clk 0:01:55]}  Qh3+ {[%clk 0:01:51]} 20. Kg1 {[%clk 0:01:54]}  Rg8+ {[%clk 0:01:51]} 21. Kf2 {[%clk 0:01:55]}  Bh4+ {[%clk 0:01:52]} 22. Ke2 {[%clk 0:01:51]}  Rg2+ {[%clk 0:01:52]} 0-1


[Site "https://www.chess.com"]

[Event "Titled Tuesday Blitz June 20 Early 2023"]
[White "LangesNasenhaar"]
[Black "brm72"]
[WhiteElo "2462"]
[BlackElo "2556"]
[Result "0-1"]
[Round "8"]
[TimeControl "180+2"]
[Date "2023.06.20"]
[WhiteClock "0:00:00"]
[BlackClock "0:00:17"]
[Board "101"]

1. d4 {[%clk 0:03:00]}  Nf6 {[%clk 0:03:00]} 2. Nc3 {[%clk 0:03:01]}  d5 {[%clk 0:02:59]} 3. Bf4 {[%clk 0:03:01]}  c5 {[%clk 0:02:59]} 4. e4 {[%clk 0:03:01]}  Nxe4 {[%clk 0:02:59]} 5. Nxe4 {[%clk 0:03:01]}  dxe4 {[%clk 0:03:00]} 6. dxc5 {[%clk 0:03:01]}  Qa5+ {[%clk 0:03:01]} 7. c3 {[%clk 0:03:01]}  Qxc5 {[%clk 0:03:01]} 8. Qa4+ {[%clk 0:03:02]}  Nc6 {[%clk 0:03:01]} 9. Qxe4 {[%clk 0:03:03]}  g6 {[%clk 0:03:02]} 10. Rd1 {[%clk 0:03:00]}  Bg7 {[%clk 0:03:02]} 11. Nf3 {[%clk 0:03:01]}  Qb6 {[%clk 0:02:36]} 12. Bc4 {[%clk 0:02:42]}  Qxb2 {[%clk 0:02:20]} 13. O-O {[%clk 0:02:42]}  O-O {[%clk 0:02:15]} 14. Bd2 {[%clk 0:02:15]}  Bf5 {[%clk 0:02:11]} 15. Qh4 {[%clk 0:02:15]}  Ne5 {[%clk 0:02:01]} 16. Nxe5 {[%clk 0:02:02]}  Bxe5 {[%clk 0:02:01]} 17. Qxe7 {[%clk 0:01:52]}  Bxc3 {[%clk 0:02:00]} 18. Bh6 {[%clk 0:01:42]}  Bg7 {[%clk 0:01:58]} 19. Bxg7 {[%clk 0:01:35]}  Kxg7 {[%clk 0:01:57]} 20. Rfe1 {[%clk 0:01:22]}  b5 {[%clk 0:01:29]} 21. Bb3 {[%clk 0:01:11]}  a5 {[%clk 0:01:27]} 22. Re5 {[%clk 0:01:11]}  a4 {[%clk 0:01:18]} 23. Bd5 {[%clk 0:01:10]}  Rad8 {[%clk 0:01:07]} 24. h3 {[%clk 0:01:06]}  b4 {[%clk 0:00:51]} 25. Rde1 {[%clk 0:00:50]}  b3 {[%clk 0:00:29]} 26. axb3 {[%clk 0:00:51]}  a3 {[%clk 0:00:30]} 27. g4 {[%clk 0:00:52]}  Bc8 {[%clk 0:00:28]} 28. R1e2 {[%clk 0:00:36]}  a2 {[%clk 0:00:23]} 29. Bxf7 {[%clk 0:00:09]}  a1=Q+ {[%clk 0:00:20]} 30. Kh2 {[%clk 0:00:09]}  Rd7 {[%clk 0:00:18]} 31. Qe6 {[%clk 0:00:00]}  Rdxf7 {[%clk 0:00:17]} 0-1


[Site "https://www.chess.com"]

[Event "Titled Tuesday Blitz June 20 Early 2023"]
[White "Fernandez Siles, Luis"]
[Black "Ismayil, Malak"]
[WhiteFideId "2209420"]
[BlackFideId "13412604"]
[WhiteElo "2195"]
[BlackElo "1868"]
[Result "1-0"]
[Round "8"]
[TimeControl "180+2"]
[Date "2023.06.20"]
[WhiteClock "0:00:17"]
[BlackClock "0:00:07"]
[Board "106"]

1. e4 {[%clk 0:03:00]}  e5 {[%clk 0:02:57]} 2. Nf3 {[%clk 0:03:00]}  Nc6 {[%clk 0:02:56]} 3. Bc4 {[%clk 0:02:59]}  Bc5 {[%clk 0:02:55]} 4. O-O {[%clk 0:02:57]}  Nf6 {[%clk 0:02:55]} 5. d4 {[%clk 0:02:58]}  Bxd4 {[%clk 0:02:52]} 6. Nxd4 {[%clk 0:02:57]}  Nxd4 {[%clk 0:02:53]} 7. Bg5 {[%clk 0:02:57]}  d6 {[%clk 0:02:33]} 8. f4 {[%clk 0:02:54]}  Be6 {[%clk 0:02:32]} 9. Na3 {[%clk 0:02:51]}  Qe7 {[%clk 0:02:16]} 10. c3 {[%clk 0:02:48]}  Nc6 {[%clk 0:02:14]} 11. f5 {[%clk 0:02:43]}  Bxc4 {[%clk 0:01:59]} 12. Nxc4 {[%clk 0:02:43]}  Qd7 {[%clk 0:02:00]} 13. Bxf6 {[%clk 0:02:39]}  gxf6 {[%clk 0:02:01]} 14. Ne3 {[%clk 0:02:25]}  Ne7 {[%clk 0:02:00]} 15. Ng4 {[%clk 0:02:23]}  Ng8 {[%clk 0:01:51]} 16. Qe1 {[%clk 0:01:52]}  h5 {[%clk 0:01:45]} 17. Qh4 {[%clk 0:01:47]}  O-O-O {[%clk 0:01:25]} 18. Ne3 {[%clk 0:01:35]}  c6 {[%clk 0:00:57]} 19. b4 {[%clk 0:01:35]}  Nh6 {[%clk 0:00:49]} 20. h3 {[%clk 0:01:30]}  Qe7 {[%clk 0:00:46]} 21. a4 {[%clk 0:01:28]}  Rdg8 {[%clk 0:00:43]} 22. b5 {[%clk 0:01:24]}  Rg5 {[%clk 0:00:36]} 23. bxc6 {[%clk 0:01:07]}  bxc6 {[%clk 0:00:37]} 24. Rfb1 {[%clk 0:00:52]}  Kc7 {[%clk 0:00:33]} 25. Qf2 {[%clk 0:00:46]}  d5 {[%clk 0:00:18]} 26. Nxd5+ {[%clk 0:00:37]}  cxd5 {[%clk 0:00:17]} 27. Qxa7+ {[%clk 0:00:36]}  Kd6 {[%clk 0:00:16]} 28. Rb6+ {[%clk 0:00:24]}  Kc5 {[%clk 0:00:16]} 29. Rb7+ {[%clk 0:00:22]}  Kc4 {[%clk 0:00:15]} 30. Rxe7 {[%clk 0:00:21]}  Kd3 {[%clk 0:00:12]} 31. Qf2 {[%clk 0:00:19]}  Rhg8 {[%clk 0:00:10]} 32. Rd1+ {[%clk 0:00:19]}  Kc4 {[%clk 0:00:08]} 33. Rc7+ {[%clk 0:00:19]}  Kb3 {[%clk 0:00:07]} 34. Rb1+ {[%clk 0:00:17]}  Ka3 {[%clk 0:00:07]} 35. Qb2+ {[%clk 0:00:17]}  Kxa4 {[%clk 0:00:07]} 36. Qb4# {[%clk 0:00:17]} 1-0


[Site "https://www.chess.com"]

[Event "Titled Tuesday Blitz June 20 Early 2023"]
[White "chess123456s"]
[Black "Buscar, Michael"]
[BlackFideId "2603616"]
[WhiteElo "2524"]
[BlackElo "2010"]
[Result "1-0"]
[Round "8"]
[TimeControl "180+2"]
[Date "2023.06.20"]
[WhiteClock "0:00:51"]
[BlackClock "0:00:15"]
[Board "108"]

1. e4 {[%clk 0:03:00]}  c5 {[%clk 0:02:59]} 2. Nf3 {[%clk 0:03:00]}  Nc6 {[%clk 0:03:00]} 3. d4 {[%clk 0:02:59]}  cxd4 {[%clk 0:03:01]} 4. Nxd4 {[%clk 0:02:59]}  Nf6 {[%clk 0:03:01]} 5. Nc3 {[%clk 0:02:59]}  e5 {[%clk 0:03:02]} 6. Ndb5 {[%clk 0:03:00]}  h6 {[%clk 0:03:02]} 7. Nd6+ {[%clk 0:02:58]}  Bxd6 {[%clk 0:03:03]} 8. Qxd6 {[%clk 0:02:59]}  Qe7 {[%clk 0:03:04]} 9. Qxe7+ {[%clk 0:02:59]}  Kxe7 {[%clk 0:03:04]} 10. b3 {[%clk 0:03:00]}  Rd8 {[%clk 0:03:05]} 11. Ba3+ {[%clk 0:03:00]}  d6 {[%clk 0:03:06]} 12. O-O-O {[%clk 0:03:01]}  Be6 {[%clk 0:03:05]} 13. Nd5+ {[%clk 0:03:01]}  Bxd5 {[%clk 0:03:04]} 14. exd5 {[%clk 0:03:02]}  Nb8 {[%clk 0:02:51]} 15. Re1 {[%clk 0:03:01]}  Nfd7 {[%clk 0:02:48]} 16. f4 {[%clk 0:02:59]}  f6 {[%clk 0:02:48]} 17. Bd3 {[%clk 0:02:54]}  Na6 {[%clk 0:02:40]} 18. Bb5 {[%clk 0:02:21]}  Nc7 {[%clk 0:02:35]} 19. Bxd7 {[%clk 0:02:15]}  Kxd7 {[%clk 0:02:35]} 20. fxe5 {[%clk 0:02:15]}  fxe5 {[%clk 0:02:32]} 21. Rhf1 {[%clk 0:02:12]}  Rf8 {[%clk 0:02:24]} 22. c4 {[%clk 0:02:07]}  Rf6 {[%clk 0:02:12]} 23. Rxf6 {[%clk 0:02:01]}  gxf6 {[%clk 0:02:11]} 24. Re4 {[%clk 0:02:01]}  Rg8 {[%clk 0:02:08]} 25. g3 {[%clk 0:02:00]}  Rg5 {[%clk 0:01:58]} 26. Kd2 {[%clk 0:01:56]}  Na6 {[%clk 0:01:35]} 27. Rh4 {[%clk 0:01:30]}  h5 {[%clk 0:01:33]} 28. Ke2 {[%clk 0:01:29]}  b6 {[%clk 0:01:20]} 29. Bc1 {[%clk 0:01:28]}  Rf5 {[%clk 0:01:17]} 30. h3 {[%clk 0:01:28]}  e4 {[%clk 0:01:03]} 31. Rxe4 {[%clk 0:01:24]}  Nc5 {[%clk 0:01:04]} 32. Re3 {[%clk 0:01:24]}  b5 {[%clk 0:00:55]} 33. Bb2 {[%clk 0:01:21]}  a5 {[%clk 0:00:49]} 34. Rf3 {[%clk 0:01:08]}  Rxf3 {[%clk 0:00:40]} 35. Kxf3 {[%clk 0:01:09]}  bxc4 {[%clk 0:00:39]} 36. bxc4 {[%clk 0:01:09]}  Ke7 {[%clk 0:00:34]} 37. g4 {[%clk 0:01:03]}  hxg4+ {[%clk 0:00:33]} 38. Kxg4 {[%clk 0:01:04]}  Ne4 {[%clk 0:00:31]} 39. Bd4 {[%clk 0:01:01]}  Kf7 {[%clk 0:00:22]} 40. h4 {[%clk 0:00:59]}  Nd2 {[%clk 0:00:20]} 41. c5 {[%clk 0:00:56]}  dxc5 {[%clk 0:00:19]} 42. Bxc5 {[%clk 0:00:57]}  Ne4 {[%clk 0:00:17]} 43. Bd4 {[%clk 0:00:55]}  Nd6 {[%clk 0:00:16]} 44. h5 {[%clk 0:00:55]}  Kg7 {[%clk 0:00:17]} 45. a4 {[%clk 0:00:52]}  Kh6 {[%clk 0:00:15]} 46. Bxf6 {[%clk 0:00:51]} 1-0


[Site "https://www.chess.com"]

[Event "Titled Tuesday Blitz June 20 Early 2023"]
[White "Hambleton, Aman"]
[Black "Andreev, Konstantin"]
[WhiteFideId "2606577"]
[BlackFideId "24239305"]
[WhiteElo "2511"]
[BlackElo "2106"]
[Result "0-1"]
[Round "8"]
[TimeControl "180+2"]
[Date "2023.06.20"]
[WhiteClock "0:00:00"]
[BlackClock "0:01:07"]
[Board "109"]

1. e4 {[%clk 0:03:00]}  c5 {[%clk 0:03:00]} 2. Ne2 {[%clk 0:02:47]}  e6 {[%clk 0:03:00]} 3. Nbc3 {[%clk 0:02:36]}  Nc6 {[%clk 0:02:59]} 4. g3 {[%clk 0:02:34]}  a6 {[%clk 0:02:58]} 5. d4 {[%clk 0:02:25]}  cxd4 {[%clk 0:02:58]} 6. Nxd4 {[%clk 0:02:26]}  Qc7 {[%clk 0:02:58]} 7. Bg2 {[%clk 0:02:08]}  Nf6 {[%clk 0:02:57]} 8. O-O {[%clk 0:02:07]}  Nxd4 {[%clk 0:02:57]} 9. Qxd4 {[%clk 0:02:07]}  Bc5 {[%clk 0:02:57]} 10. Bf4 {[%clk 0:01:55]}  d6 {[%clk 0:02:56]} 11. Qd2 {[%clk 0:01:37]}  h6 {[%clk 0:02:55]} 12. Rfd1 {[%clk 0:01:06]}  e5 {[%clk 0:02:48]} 13. Be3 {[%clk 0:01:06]}  Bxe3 {[%clk 0:02:48]} 14. Qxe3 {[%clk 0:01:07]}  Be6 {[%clk 0:02:45]} 15. Rd2 {[%clk 0:00:18]}  O-O {[%clk 0:02:41]} 16. Rad1 {[%clk 0:00:19]}  Rfd8 {[%clk 0:02:33]} 17. h3 {[%clk 0:00:15]}  b5 {[%clk 0:02:32]} 18. a3 {[%clk 0:00:16]}  Rac8 {[%clk 0:02:26]} 19. f4 {[%clk 0:00:15]}  exf4 {[%clk 0:02:24]} 20. gxf4 {[%clk 0:00:09]}  Rb8 {[%clk 0:02:01]} 21. Rd4 {[%clk 0:00:07]}  a5 {[%clk 0:01:59]} 22. e5 {[%clk 0:00:05]}  dxe5 {[%clk 0:01:12]} 23. Qxe5 {[%clk 0:00:00]}  Qb6 {[%clk 0:01:07]} 0-1


[Site "https://www.chess.com"]